Cogmind - Beta 14 @@@ ROGUE MODE // 2024.11.21 @ 07:41:07 Player: Fangrelle Result: Destroyed by S-10 Pest with Light Assault Rifle Performance ------------- Evolutions (0) 0 Regions Visited (2) 400 Robots Destroyed (23) 115 Value Destroyed (688) 688 Prototype IDs (0) 0 Alien Tech Used (0) 0 Bonus (7) 7 TOTAL SCORE: 1210 Bonus ------- Follower Combat Kills 7 Cogmind --------- Core Integrity 0/250 Matter 265/300 Energy 250/250 System Corruption 0% Temperature Cool (0) Movement Core (1600) Ox31 Location -10/Mines Parts ------- > --- POWER (1) -------- Ion Engine > --- PROPULSION (2) --- (None) > --- UTILITY (2) ------ Improved Heat Sink Huge Storage Unit > --- WEAPON (2) ------- Improved Light Cannon Improved Light Cannon > --- INVENTORY (25) --- Ion Engine Improved Heat Sink Improved Heat Sink High-capacity Storage Unit Huge Storage Unit High-capacity Matter Pod (114) Visual Processing Unit Experimental Sensor Array Signal Interpreter Targeting Computer Targeting Computer Targeting Computer Core Shielding Beam Rifle Beam Rifle Beam Rifle Beam Rifle Particle Gun Improved Light Cannon Improved Light Cannon Grenade Launcher Datajack Mining Laser Peak State ------------ > --- POWER ------------ Ion Engine > --- PROPULSION ------- Light Treads Compact Wheel > --- UTILITY ---------- Improved Heat Sink Huge Storage Unit > --- WEAPON ----------- Improved Light Cannon Improved Light Cannon > --- INVENTORY -------- Ion Engine Improved Heat Sink Improved Heat Sink High-capacity Storage Unit Huge Storage Unit High-capacity Matter Pod Visual Processing Unit Experimental Sensor Array Signal Interpreter Targeting Computer Targeting Computer Targeting Computer Core Shielding Beam Rifle Beam Rifle Beam Rifle Beam Rifle Particle Gun Improved Light Cannon Improved Light Cannon Grenade Launcher Datajack Mining Laser [Rating: 15] Favorites ----------- Power Ion Engine Engine Ion Engine Propulsion Light Treads Treads Light Treads Leg Aluminum Leg Wheel Compact Wheel Utility Improved Heat Sink Device Improved Heat Sink Storage Huge Storage Unit Processor Targeting Computer Weapon Improved Light Cannon Energy Gun Medium Laser Ballistic Cannon Improved Light Cannon Build | -11 -10 -10 ------- Run | Yrd Mat Min Slots Evolved . | . . . Power . | . . . Propulsion . | . . . Utility . | . . . Weapon . | . . . Parts Attached 16 | . 16 . Power 1 | . 1 . Engine 1 | . 1 . Core . | . . . Reactor . | . . . Propulsion 3 | . 3 . Treads 2 | . 2 . Leg . | . . . Wheel 1 | . 1 . Hover . | . . . Flight . | . . . Utility 3 | . 3 . Device 1 | . 1 . Storage 1 | . 1 . Processor 1 | . 1 . Hackware . | . . . Protection . | . . . Artifact . | . . . Weapon 9 | . 9 . Energy Gun 5 | . 5 . Energy Cannon . | . . . Ballistic Gun . | . . . Ballistic Cannon 4 | . 4 . Launcher . | . . . Special Weapon . | . . . Impact Weapon . | . . . Slashing Weapon . | . . . Piercing Weapon . | . . . Special Melee Weapon . | . . . Unidentified Prototypes . | . . . Parts Lost 6 | . 4 2 Power 1 | . 1 . Propulsion 3 | . 1 2 Utility . | . . . Weapon 2 | . 2 . Highest Loss Streak 3 | . 3 1 To Critical Strikes . | . . . Average Slot Usage (%) 84 | . 88 82 Engine 13 | . 13 14 Treads 9 | . 16 6 Wheel 4 | . 3 4 Device 13 | . 12 14 Storage 14 | . 14 14 Energy Gun 7 | . 21 . Ballistic Cannon 19 | . 3 28 Peak Build Rating 15 | . 13 15 Average Rating 12 | . 9 13 On Entrance 8 | 6 6 13 Naked Turns . | . . . Heaviest Build 94 | 13 94 94 Greatest Support 40 | 20 40 20 Greatest Overweight (x) 31 | . 5 31 Average Overweight (x) 6 | . 3 8 Largest Inventory Capacity 25 | . 25 25 Average Capacity 24 | . 23 25 Most Carried 23 | . 20 23 Average Carried 19 | . 13 22 Final Capacity 25 | 8 25 25 Final Carried 23 | 6 18 23 Class Distribution -------------------- 100% | Mutant Dominant Class ---------------- Mutant | -10/Materials Mutant | -10/Mines Resources | -11 -10 -10 ----------- Run | Yrd Mat Min Matter Collected 583 | 200 164 219 Remotely . | . . . Salvage Created 723 | . 529 194 Parts 43 | . 30 13 Haulers Intercepted . | . . . Recyclers Shooed 1 | . 1 . Parts Field Recycled . | . . . Retrieved Matter . | . . . Parts Self-Destructed . | . . . Prevented . | . . . Kills | -11 -10 -10 ------- Run | Yrd Mat Min Combat Hostiles Destroyed 19 | . 13 6 Guns 11 | . 11 . Cannons 7 | . 1 6 Classes Destroyed 5 | . 5 . Worker 1 | . 1 . Operator 1 | . 1 . Watcher 2 | . 2 . Swarmer 3 | . 3 . Grunt 16 | . 10 6 Best Kill Streak 3 | . 3 2 Combat Bots Only 3 | . 3 2 Max Kills in Single Turn 1 | . 1 1 Gunslinging . | . . . Exploded . | . . . Melee . | . . . Uniques/NPCs Destroyed . | . . . Combat | -11 -10 -10 -------- Run | Yrd Mat Min Hostile Shots Fired 109 | . 83 26 Missed 21 | . 16 5 Damage Taken 1044 | . 768 276 Core 254 | . 180 74 Absorbed by Shields . | . . . Core Remaining (%) 100 | 100 . . Volleys Fired 66 | . 52 14 Largest 2 | . 2 2 Hottest 112 | . 112 78 Shots Fired 116 | . 88 28 Gun 86 | . 86 . Cannon 30 | . 2 28 Launcher . | . . . Special . | . . . Kinetic 30 | . 2 28 Thermal 86 | . 86 . Explosive . | . . . Electromagnetic . | . . . Robot Hit Streak 20 | . 20 9 Robot Miss Streak 3 | . 3 3 Penetration Max . | . . . Secondary Targets . | . . . Shots Hit Robots 79 | . 64 15 Core Hits 37 | . 28 9 Critical Kills . | . . . Critical Parts Destroyed . | . . . Critical Strikes 8 | . 7 1 Burn 7 | . 7 . Blast 1 | . . 1 Melee Attacks . | . . . Impact . | . . . Slashing . | . . . Piercing . | . . . Sneak Attacks . | . . . Combat Hostiles . | . . . Follow-up Attacks . | . . . Damage Inflicted 1121 | . 801 320 Guns 780 | . 780 . Cannons 340 | . 21 319 Explosions . | . . . Melee . | . . . Ramming 1 | . . 1 Kinetic 340 | . 21 319 Thermal 780 | . 780 . Explosive . | . . . Electromagnetic . | . . . Impact . | . . . Slashing . | . . . Piercing . | . . . Highest Corruption . | . . . Average Corruption . | . . . Corruption Purged . | . . . Corruption Blocked . | . . . Overload Shots . | . . . Overflow Damage . | . . . Projectiles . | . . . Explosions . | . . . Melee . | . . . Knockbacks 1 | . . 1 Impact . | . . . Kinetic 1 | . . 1 Secondary . | . . . Self-Inflicted Damage . | . . . Shots . | . . . Rammed 1 | . . 1 Targets Rammed 1 | . . 1 Kicked . | . . . Crushed . | . . . Highest Temperature 222 | . 222 19 Average Temperature 54 | . 60 5 Received Heat Transfer 531 | . 363 168 Effects 1 | . 1 . Energy Bleed 1 | . 1 . Siege Activations . | . . . Robots Corrupted . | . . . Combat Hostiles . | . . . Parts Fried . | . . . Impact Corruptions . | . . . Robots Melted 1 | . 1 . Combat Hostiles 1 | . 1 . Parts Melted 6 | . 6 . Heat Transferred 2634 | . 2634 . Parts Sabotaged . | . . . Parts Stolen . | . . . Parts Stripped . | . . . Power Chain Reactions . | . . . Alert | -11 -10 -10 ------- Run | Yrd Mat Min Peak Influence 274 | . 274 101 Initial 1 | . . 1 Average 29 | . 55 16 Maximum Alert Level 1 | . 1 . Low Security (%) 99 | . 97 100 Level 1 . | . 2 . Level 2 . | . . . Level 3 . | . . . Level 4 . | . . . Level 5 . | . . . High Security . | . . . Max Security . | . . . Squads Dispatched 3 | . 3 . Investigation 2 | . 2 . Extermination . | . . . Reinforcement 1 | . 1 . Assault . | . . . Garrison . | . . . Intercept . | . . . Searches Triggered . | . . . Construction Impeded . | . . . Haulers Reinforced . | . . . Active Scanning Responses . | . . . Cargo Convoy Interrupts . | . . . Stealth | -11 -10 -10 --------- Run | Yrd Mat Min Distress Signals 1 | . 1 . Communications Jammed . | . . . Distress Signals . | . . . Times Spotted 29 | . 18 11 Peak Tracking Total 6 | . 6 3 Tactical Retreats 1 | . . 1 Traps | -11 -10 -10 ------- Run | Yrd Mat Min Traps Triggered . | . . . Indirectly . | . . . Trap Hack Attempts . | . . . Triggered . | . . . Disarmed . | . . . Reprogrammed . | . . . Reused . | . . . Traps Extracted . | . . . Installed . | . . . Triggered . | . . . Machines | -11 -10 -10 ---------- Run | Yrd Mat Min Machines Disabled . | . . . Max in Single Turn . | . . . Machines Repaired . | . . . Machines Dismantled . | . . . Machines Sabotaged . | . . . Overloaded Fab Kills . | . . . Hacking | -11 -10 -10 --------- Run | Yrd Mat Min Machines Accessed 5 | . 5 . Terminals 3 | . 3 . Fabricators . | . . . Repair Stations . | . . . Recycling Units 2 | . 2 . Scanalyzers . | . . . Garrison Access . | . . . Total Hacks 14 | . 14 . Successful 7 | . 7 . Failed 7 | . 7 . Catastrophic . | . . . Database Lockouts . | . . . Manual 11 | . 11 . Terminals 9 | . 9 . Fabricators . | . . . Repair Stations . | . . . Recycling Units 5 | . 5 . Scanalyzers . | . . . Garrison Access . | . . . Terminal Hacks . | . . . Fabricator Hacks . | . . . Repair Station Hacks . | . . . Recycling Unit Hacks 2 | . 2 . Retrieve Components 2 | . 2 . Scanalyzer . | . . . Garrison Access Hacks . | . . . Unauthorized Hacks 5 | . 5 . Terminals 3 | . 3 . Botnet 2 | . 2 . Operators 1 | . 1 . Fabricators . | . . . Repair Stations . | . . . Recycling Units 2 | . 2 . Tunnel 2 | . 2 . Scanalyzers . | . . . Garrison Access . | . . . Data Cores Recovered . | . . . Used . | . . . Hacking Detections 4 | . 4 . Full Trace Events . | . . . Feedback Events . | . . . Feedback Blocked . | . . . Robot Schematics Acquired . | . . . Robots Built . | . . . Authchips . | . . . Time . | . . . Total Robot Build Rating . | . . . Part Schematics Acquired . | . . . Parts Built . | . . . Authchips . | . . . Time . | . . . Total Part Build Rating . | . . . Parts Repaired . | . . . Time . | . . . Parts Recycled . | . . . Recycled Matter . | . . . Retrieved Matter . | . . . Retrieved Components 9 | . 9 . Parts Scanalyzed . | . . . Part Schematics Acquired . | . . . Parts Damaged . | . . . Bothacking | -11 -10 -10 ------------ Run | Yrd Mat Min Used RIF Installer . | . . . Robots Hacked . | . . . Non-combat . | . . . Combat . | . . . Robot Hacks Applied . | . . . Relay Couplers Released . | . . . Fabnet Peak Effective % . | . . . Robots Rewired . | . . . Allies Hacked . | . . . Hacks Repelled . | . . . Allies | -11 -10 -10 -------- Run | Yrd Mat Min Total Allies 1 | . . 1 Largest Group 1 | . . 1 Highest-Rated Group 31 | . . 31 Highest-Rated Ally 31 | . . 31 Total Orders . | . . . Ally Attacks 9 | . . 9 Total Damage 100 | . . 100 Kills 3 | . . 3 Allies Corrupted . | . . . Allies Melted . | . . . Intel | -11 -10 -10 ------- Run | Yrd Mat Min Robot Analysis Total . | . . . Derelict Logs Recovered 2 | . . 2 Drone Launches . | . . . Drone Recoveries . | . . . Exploration | -11 -10 -10 ------------- Run | Yrd Mat Min Turns Passed 5494 | . 1793 3701 Spaces Moved 1335 | 1 541 793 Core 122 | . . 122 Treads 422 | . 296 126 Legs 1 | 1 . . Wheels 790 | . 245 545 Hover . | . . . Flight . | . . . Fastest Speed 120 | 120 160 175 Average Speed 376 | 120 280 442 Slowest Speed 1600 | 120 480 1600 Overloaded Moves . | . . . Propulsion Burnouts . | . . . Robots Hopped . | . . . Cave-ins Triggered . | . . . Exploration Rate (%) 53 | 1 58 100 Regions Visited 2 Branch Regions 1 Pre-discovered Areas 3 | . 2 1 Known Exits Taken . | . . . Unknown Exits Taken 2 | 1 1 . Scrap Searched 2 | . . 2 Spaces Dug . | . . . Terrain Destroyed 3 | . . 3 Melee . | . . . Projectile 3 | . . 3 AOE . | . . . Terrain Rammed . | . . . Walls Destroyed . | . . . Machines Disabled . | . . . Actions | -11 -10 -10 --------- Run | Yrd Mat Min Total 1689 | . 728 961 Wait 236 | . 88 148 Move 1333 | . 540 793 Hop . | . . . Pick Up 28 | . 23 5 Fast Attach 2 | . 2 . Attach 7 | . 7 . Detach . | . . . Swap 7 | . 7 . Drop 9 | . 9 . Fire 66 | . 52 14 Melee . | . . . Ram 1 | . . 1 Kick . | . . . Crush . | . . . Escape Stasis . | . . . Rewire . | . . . Trap . | . . . Miscellaneous . | . . . Route ------- -11/Scrapyard -10/Materials (discovered 3 exits: [*Mat] / [*Min x2]) -10/Mines (discovered 2 exits: [*Mat x2]) History --------- Turn | Location | Event 1 | -11/Scrapyard | Discovered new exit (range 0) 1 | -11/Scrapyard | Entered Materials 17 | -10/Materials | Discovered new exit (range 16) 308 | -10/Materials | Build established: Mutant 382 | -10/Materials | Core integrity fell below 50% 418 | -10/Materials | Lost 3 parts (1n2w) 632 | -10/Materials | Discovered new exit (range 16) 1517 | -10/Materials | Discovered new exit (range 15) 1794 | -10/Materials | Entered Mines 1820 | -10/Mines | Core integrity fell below 20% 2060 | -10/Mines | Received a Mining Laser from a helpful Derelict 2188 | -10/Mines | Learned location of Storage (-7) 2207 | -10/Mines | Discovered new exit (range 12) 2416 | -10/Mines | Found a damaged Exp. Sensor Array with a note attached 2420 | -10/Mines | Found Prototype Device 2515 | -10/Mines | Discovered new exit (range 7) 5495 | -10/Mines | Destroyed by S-10 Pest with Light Assault Rifle Last Messages --------------- 03539_ K-01 Serf collects debris. 03549_ U-05 Engineer builds a Wall. 04421_ U-05 Engineer lays Concrete. 04422_ U-05 Engineer builds a Wall. 04423_ T-07 Excavator is excavating. 04424_ U-05 Engineer lays Concrete. 04427_ T-07 Excavator is excavating. 04428_ U-05 Engineer builds a Wall. 04428_ U-05 Engineer lays Concrete. 04429_ U-05 Engineer builds a Wall. 04432_ U-05 Engineer lays Concrete. 04433_ T-07 Excavator is excavating. 04433_ U-05 Engineer builds a Wall. 04439_ U-05 Engineer lays Concrete. 04440_ U-05 Engineer builds a Wall. 04454_ U-05 Engineer lays Concrete. 04456_ U-05 Engineer builds a Wall. 04458_ U-05 Engineer lays Concrete. 04460_ U-05 Engineer builds a Wall. 04471_ U-05 Engineer builds a Door. Map ----- +----------------------------------------------------+ | ?# ?????????# #??????????????? | | ?? ??????### #??????????????? | | ?# """ ######### #######????????? | | ?# """*%=%= #????????? | | ?# """ ######### ##### #????????? | | ?? ??????## ##??# #####????? | | ?# """??????## #??# #????? | | ?# """??????# #??##### #????? | | ?# ""???????# ##?????# #????? | | ?# ???????# #?????# #????? | | ?####?#????????## #?????# #????? | | ????????????????# #?????# #????? | | ##??????????????## #?????# #????? | | #???????????????### #?????# #????? | | #?????????????????# #?????# #????? | | #?????????????????# #?????# ##???? | | ##????????????????# #??#### ##??? | | ##???############# #?## #??? | | ##??# ### """ #??? | | #??# """ #??? | | #### ################ """ ##?? | | ## #??????????????## #?? | | #?#######??????## #?? | | #?# #?????## #?? | | ## #?# #?????# #?? | | #### ##?# #######@ #?? | | #??# ##??# < s ##?? | | ???# ##??# ##### #########??? | | #??# #??#######???# #??????????? | | #### #????????????# #??????????? | | ## #????????????# #??????????? | | ##????????????# #??????????? | | ##?????????????# #??????????? | | # ##??????####????# #??????????? | | ## ##??????## ##???# #??????????? | | ?#####??????## #???# #??????????? | | ???????????## ##??# #??????????? | | ???????????# ##?# #??????????? | | ???????????# ### #??????????? | | ????#####??# #??????????? | | ???## ##?# #####??????????? | | ??## #### ##?????????????? | | ??# #?# ##????????????? | | ### #?# ##???????????? | | ##?## #???????????? | | ### ##???# #???????????? | | ??# #???## ## ##???????????? | | ### ##### #######????????????? | | #??????????????????? | | #??????????????????? | +----------------------------------------------------+ Best States ------------- Heat Dissipation 39 Energy Generation 10 Energy Capacity 250 Matter Stores 300 Matter Capacity 300 Sight Range 16 Terrain Scan Density 10 Evasion (%) 40 Targeting Accuracy 5 Recoil Reduction 2 Item Schematics ----------------- None Robot Schematics ------------------ None Fabricated ------------ Nothing Alien Tech Used ----------------- None Achievements -------------- None Challenges ------------ None Game ------ Seed ElectrostormRocketShifter Manual? 0 Play Time 00:14:53 Cumulative 124.0 hours Start 2024.11.21 @ 06:32:33 End 2024.11.21 @ 07:41:07 Sessions 1 Manual Loads 0 Difficulty Rogue Special Mode None Game No. 230 Rogue 230 Adventurer 0 Explorer 0 Win Type - Total 0 Types 0/0/0/0/0/0/0/0/0 Lore% 43 Gallery% 40 Achievement% 36 Wizard Run 0 Options --------- Layout 0 ASCII 0 Keyboard 0 Movement Mouse Keybinds 0 Fullscreen 1 Font 24/Smallcaps Map View 183x50 Zoom Use 91% Tactical HUD 1 Map Filters NONE Filters NONE Steam 1 RUN: 1b73f095-e32e-4f67-8a6a-81a8f4b9f18d